fUST/lending_fUST_20250817
["ID","MTS","AMOUNT","RATE_DAILY","PERIOD"]
[379701116,1755375230686,160.0,0.0002,3]
[379701130,1755375271759,979.19521374,0.0002006,2]
[379701137,1755375462696,856.79581197,0.00020059,2]
[379701138,1755375534528,160.0,0.0002,3]
[379701141,1755375655455,749.6963355,0.00020059,2]
[379701144,1755375730972,14681.4173276,0.00020061,2]
[379701147,1755375838044,160.0,0.0002,3]
[379701148,1755375852185,655.98429358,0.00020059,2]
[379701160,1755375986258,9787.61155174,0.00020061,2]
[379701163,1755376020212,404.535389,0.00013699,2]
[379701164,1755376044729,573.9862569,0.00020059,2]
[379701165,1755376112665,106155.31247,0.0002,2]
[379701166,1755376116179,150.999999,0.0002,120]
[379701169,1755376124349,600.0,0.00019725,2]
[379701189,1755376230212,502.23797477,0.00020059,2]
[379701190,1755376230927,180.74278485,0.00020059,2]
[379701232,1755376232135,-365.98,0.00020149,3]
[379701234,1755376232144,-365.99,0.00020149,3]
[379701236,1755376232154,-1200.0,0.00020157,2]
[379701238,1755376232166,-300.0,0.00020157,2]
[379701240,1755376232175,-300.0,0.00020157,2]
[379701242,1755376232184,-300.0,0.00020157,2]
[379701244,1755376232194,-480.0,0.00020158,2]
[379701246,1755376232203,-480.0,0.00020158,2]
[379701248,1755376232212,-894.38605603,0.00020158,2]
[379701476,1755376240114,-119.21394397,0.00020158,2]
[379701478,1755376240125,-3168.19,0.00020158,2]
[379701480,1755376240135,-480.0,0.00020158,2]
[379701482,1755376240144,-480.0,0.00020158,2]
[379701483,1755376240153,-480.0,0.00020158,2]
[379701484,1755376240163,-480.0,0.00020158,2]
[379701485,1755376240173,-480.0,0.00020158,2]
[379701487,1755376240182,-480.0,0.00020158,2]
[379701489,1755376240192,-657.1,0.00020158,2]
[379701491,1755376240201,-480.0,0.00020158,2]
[379701493,1755376240210,-480.0,0.00020158,2]
[379701495,1755376240219,-480.0,0.00020158,2]
[379701496,1755376240228,-480.0,0.00020158,2]
[379701498,1755376240237,-480.0,0.00020158,2]
[379701500,1755376240246,-464.30543105,0.00020158,2]
[379701502,1755376240255,-460.0,0.00020158,2]
[379701504,1755376240264,-480.0,0.00020158,2]
[379701506,1755376240273,-47945.72043824,0.00020159,2]
[379701507,1755376240282,-411.29848604,0.00020159,2]
[379701510,1755376240295,-68.70151396,0.00020159,2]
[379701511,1755376240305,-480.0,0.00020159,2]
[379701513,1755376240314,-480.0,0.00020159,2]
[379701515,1755376240323,-480.0,0.00020159,2]
[379701517,1755376240332,-480.0,0.00020159,2]
[379701519,1755376240341,-480.0,0.00020159,2]
[379701521,1755376240350,-480.0,0.00020159,2]
[379701523,1755376240359,-480.0,0.00020159,2]
[379701524,1755376240368,-460.0,0.00020159,2]
[379701526,1755376240377,-480.0,0.00020159,2]
[379701528,1755376240387,-480.0,0.00020159,2]
[379701530,1755376240396,-480.0,0.00020159,2]
[379701532,1755376240405,-480.0,0.00020159,2]
[379701534,1755376240415,-460.88701223,0.00020159,2]
[379701536,1755376240425,-480.0,0.00020159,2]
[379701538,1755376240435,-480.0,0.00020159,2]
[379701539,1755376240444,-480.0,0.00020159,2]
[379701540,1755376240453,-460.0,0.00020159,2]
[379701541,1755376240462,-480.0,0.00020159,2]
[379701542,1755376240471,-480.0,0.00020159,2]
[379701543,1755376240480,-452.49325883,0.00020159,2]
[379701544,1755376240663,-480.0,0.00020159,2]
[379701545,1755376240673,-480.0,0.00020159,2]
[379701546,1755376240683,-480.0,0.00020159,2]
[379701547,1755376240693,-1369.2,0.00020159,2]
[379701548,1755376240702,-480.0,0.00020159,2]
[379701549,1755376240711,-460.0,0.00020159,2]
[379701550,1755376240720,-311.97778688,0.00020159,2]
[379701551,1755376240729,-480.0,0.00020159,2]
[379701552,1755376240738,-480.0,0.00020159,2]
[379701553,1755376240747,-480.0,0.00020159,2]
[379701554,1755376240756,-509.22,0.00020159,2]
[379701555,1755376240766,-480.0,0.00020159,2]
[379701556,1755376240775,-480.0,0.00020159,2]
[379701557,1755376240784,-502.28,0.00020159,2]
[379701558,1755376240793,-480.0,0.00020159,2]
[379701559,1755376240803,-480.0,0.00020159,2]
[379701560,1755376240812,-480.0,0.00020159,2]
[379701561,1755376240821,-480.0,0.00020159,2]
[379701562,1755376240830,-480.0,0.00020159,2]
[379701563,1755376240839,-480.0,0.00020159,2]
[379701564,1755376240848,-480.0,0.00020159,2]
[379701565,1755376240858,-480.0,0.00020159,2]
[379701566,1755376240866,-480.0,0.00020159,2]
[379701567,1755376240875,-480.0,0.00020159,2]
[379701568,1755376240884,-480.0,0.00020159,2]
[379701569,1755376240893,-480.0,0.00020159,2]
[379701570,1755376240903,-480.0,0.00020159,2]
[379701571,1755376240912,-626.32066212,0.00020159,2]
[379701572,1755376240921,-480.0,0.00020159,2]
[379701573,1755376240930,-480.0,0.00020159,2]
[379701574,1755376240939,-480.0,0.00020159,2]
[379701575,1755376240949,-480.0,0.00020159,2]
[379701576,1755376240958,-480.0,0.00020159,2]
[379701577,1755376240967,-480.0,0.00020159,2]
[379701578,1755376240976,-480.0,0.00020159,2]
[379701579,1755376240985,-480.0,0.00020159,2]
[379701580,1755376240995,-480.0,0.00020159,2]
[379701581,1755376241004,-480.0,0.00020159,2]
[379701582,1755376241013,-724.95,0.00020159,2]
[379701583,1755376241023,-480.0,0.00020159,2]
[379701584,1755376241032,-480.0,0.00020159,2]
[379701585,1755376241041,-421.29033633,0.00020159,2]
[379701586,1755376241051,-460.0,0.00020159,2]
[379701587,1755376241060,-480.0,0.00020159,2]
[379701588,1755376241069,-1784.94,0.00020159,2]
[379701589,1755376241079,-480.0,0.00020159,2]
[379701590,1755376241088,-480.0,0.00020159,2]
[379701591,1755376241097,-504.204224,0.00020159,2]
[379701592,1755376241106,-1650.46,0.00020159,2]
[379701593,1755376241115,-480.0,0.00020159,2]
[379701594,1755376241126,-480.0,0.00020159,2]
[379701595,1755376241135,-480.0,0.00020159,2]
[379701596,1755376241144,-651.77,0.00020159,2]
[379701597,1755376241153,-564.86,0.00020159,2]
[379701598,1755376241165,-480.0,0.00020159,2]
[379701599,1755376241174,-480.0,0.00020159,2]
[379701600,1755376241183,-480.0,0.00020159,2]
[379701601,1755376241192,-480.0,0.00020159,2]
[379701602,1755376241203,-480.0,0.00020159,2]
[379701603,1755376241212,-560.71,0.00020159,2]
[379701604,1755376241221,-460.0,0.00020159,2]
[379701605,1755376241230,-480.0,0.00020159,2]
[379701606,1755376241240,-480.0,0.00020159,2]
[379701607,1755376241250,-480.0,0.00020159,2]
[379701608,1755376241260,-480.0,0.00020159,2]
[379701609,1755376241269,-527.80176785,0.00020159,2]
[379701610,1755376241279,-480.0,0.00020159,2]
[379701611,1755376241288,-480.0,0.00020159,2]
[379701612,1755376241297,-480.0,0.00020159,2]
[379701613,1755376241306,-480.0,0.00020159,2]
[379701614,1755376241316,-480.0,0.00020159,2]
[379701615,1755376241325,-480.0,0.00020159,2]
[379701616,1755376241335,-480.0,0.00020159,2]
[379701617,1755376241344,-480.0,0.00020159,2]
[379701618,1755376241353,-480.0,0.00020159,2]
[379701619,1755376241362,-660.81,0.00020159,2]
[379701620,1755376241371,-836.84,0.00020159,2]
[379701621,1755376241381,-1027.06,0.00020159,2]
[379701622,1755376241390,-480.0,0.00020159,2]
[379701623,1755376241400,-480.0,0.00020159,2]
[379701624,1755376241409,-480.0,0.00020159,2]
[379701625,1755376241418,-480.0,0.00020159,2]
[379701626,1755376241428,-480.0,0.00020159,2]
[379701627,1755376241437,-480.0,0.00020159,2]
[379701628,1755376241446,-480.0,0.00020159,2]
[379701629,1755376241456,-790.65,0.00020159,2]
[379701630,1755376241465,-480.0,0.00020159,2]
[379701631,1755376241475,-500.0,0.00020159,2]
[379701632,1755376241484,-500.0,0.00020159,2]
[379701633,1755376241494,-554.56753057,0.00020159,2]
[379701634,1755376241503,-480.0,0.00020159,2]
[379701635,1755376241512,-460.0,0.00020159,2]
[379701636,1755376241521,-480.0,0.00020159,2]
[379701637,1755376241530,-480.0,0.00020159,2]
[379701638,1755376241539,-480.0,0.00020159,2]
[379701639,1755376241549,-1139.59,0.00020159,2]
[379701640,1755376241558,-524.69038578,0.00020159,2]
[379701641,1755376241568,-614.54,0.00020159,2]
[379701642,1755376241577,-480.0,0.00020159,2]
[379701643,1755376241586,-480.0,0.00020159,2]
[379701644,1755376241595,-480.0,0.00020159,2]
[379701645,1755376241605,-480.0,0.00020159,2]
[379701646,1755376241615,-480.0,0.00020159,2]
[379701647,1755376241624,-1068.48,0.00020159,2]
[379701648,1755376241633,-480.0,0.00020159,2]
[379701649,1755376241643,-221.99262623,0.00020159,2]
[379701650,1755376241652,-487.08,0.00020159,2]
[379701651,1755376241661,-480.0,0.00020159,2]
[379701652,1755376241671,-480.0,0.00020159,2]
[379701653,1755376241680,-480.0,0.00020159,2]
[379701654,1755376241689,-480.0,0.00020159,2]
[379701655,1755376241698,-1051.53,0.00020159,2]
[379701656,1755376241707,-480.0,0.00020159,2]
[379701657,1755376241717,-480.0,0.00020159,2]
[379701659,1755376241726,-480.0,0.00020159,2]
[379701660,1755376241735,-230.03058264,0.00020159,2]
[379701661,1755376241744,-1229.64,0.00020159,2]
[379701662,1755376241753,-151.0,0.00020159,2]
[379701663,1755376241762,-151.0,0.00020159,2]
[379701665,1755376241772,-151.0,0.00020159,2]
[379701666,1755376241780,-151.0,0.00020159,2]
[379701667,1755376241789,-151.0,0.00020159,2]
[379701668,1755376241798,-480.0,0.00020159,2]
[379701670,1755376241808,-460.98641183,0.00020159,2]
[379701671,1755376241817,-151.0,0.00020159,2]
[379701673,1755376241826,-151.0,0.00020159,2]
[379701674,1755376241835,-500.0,0.00020159,2]
[379701676,1755376241844,-151.0,0.00020159,2]
[379701678,1755376241854,-480.0,0.00020159,2]
[379701680,1755376241863,-480.0,0.00020159,2]
[379701682,1755376241873,-480.0,0.00020159,2]
[379701684,1755376241882,-151.0,0.00020159,2]
[379701686,1755376241891,-151.0,0.00020159,2]
[379701688,1755376241901,-480.0,0.00020159,2]
[379701690,1755376241910,-480.0,0.00020159,2]
[379701692,1755376241920,-151.0,0.00020159,2]
[379701694,1755376241929,-151.0,0.00020159,2]
[379701696,1755376241938,-480.0,0.00020159,2]
[379701698,1755376241948,-151.0,0.00020159,2]
[379701700,1755376241957,-151.0,0.00020159,2]
[379701701,1755376241966,-480.0,0.00020159,2]
[379701703,1755376241975,-480.0,0.00020159,2]
[379701705,1755376241984,-790.99,0.00020159,2]
[379701707,1755376241993,-480.0,0.00020159,2]
[379701709,1755376242002,-520.38386745,0.00020159,2]
[379701711,1755376242011,-480.0,0.00020159,2]
[379701713,1755376242021,-480.0,0.00020159,2]
[379701715,1755376242030,-480.0,0.00020159,2]
[379701717,1755376242039,-480.0,0.00020159,2]
[379701719,1755376242048,-460.0,0.00020159,2]
[379701721,1755376242057,-480.0,0.00020159,2]
[379701723,1755376242066,-155.76986655,0.00020159,2]
[379701725,1755376242077,-1144.5,0.00020159,2]
[379701727,1755376242086,-480.0,0.00020159,2]
[379701729,1755376242095,-480.0,0.00020159,2]
[379701731,1755376242104,-732.86,0.00020159,2]
[379701733,1755376242113,-480.0,0.00020159,2]
[379701735,1755376242123,-480.0,0.00020159,2]
[379701737,1755376242132,-5907.67,0.00020159,2]
[379701739,1755376242141,-480.0,0.00020159,2]
[379701741,1755376242150,-1386.25,0.00020159,2]
[379701743,1755376242165,-1304.43,0.00020159,2]
[379701745,1755376242174,-500.0,0.00020159,2]
[379701747,1755376242183,-480.0,0.00020159,2]
[379701749,1755376242193,-764.93,0.00020159,2]
[379701750,1755376242201,-451.33064805,0.00020159,2]
[379701753,1755376242212,-480.0,0.00020159,2]
[379701754,1755376242221,-480.0,0.00020159,2]
[379701756,1755376242230,-869.32,0.00020159,2]
[379701758,1755376242239,-480.0,0.00020159,2]
[379701760,1755376242248,-460.0,0.00020159,2]
[379701762,1755376242258,-480.0,0.00020159,2]
[379701764,1755376242269,-734.78,0.00020159,2]
[379701766,1755376242279,-480.0,0.00020159,2]
[379701768,1755376242288,-2717.25,0.00020159,2]
[379701770,1755376242297,-480.0,0.00020159,2]
[379701772,1755376242306,-904.35,0.00020159,2]
[379701774,1755376242316,-1017.21,0.00020159,2]
[379701776,1755376242325,-480.0,0.00020159,2]
[379701778,1755376242334,-460.0,0.00020159,2]
[379701779,1755376242343,-480.0,0.00020159,2]
[379701780,1755376242352,-480.0,0.00020159,2]
[379701781,1755376242362,-480.0,0.00020159,2]
[379701782,1755376242370,-480.0,0.00020159,2]
[379701783,1755376242380,-1143.35,0.00020159,2]
[379701784,1755376242389,-480.0,0.00020159,2]
[379701785,1755376242399,-910.18,0.00020159,2]
[379701786,1755376242408,-629.78,0.00020159,2]
[379701787,1755376242418,-480.0,0.00020159,2]
[379701788,1755376242427,-845.07,0.00020159,2]
[379701789,1755376242436,-460.0,0.00020159,2]
[379701790,1755376242446,-151.0,0.00020159,2]
[379701791,1755376242455,-432.22338106,0.00020159,2]
[379701792,1755376242464,-499.64,0.00020159,2]
[379701793,1755376242474,-151.0,0.00020159,2]
[379701794,1755376242483,-480.0,0.00020159,2]
[379701795,1755376242493,-542.36,0.00020159,2]
[379701796,1755376242503,-500.0,0.00020159,2]
[379701797,1755376242512,-1039.14,0.00020159,2]
[379701798,1755376242522,-151.0,0.00020159,2]
[379701799,1755376242531,-480.0,0.00020159,2]
[379701800,1755376242541,-480.0,0.00020159,2]
[379701802,1755376242550,-151.0,0.00020159,2]
[379701804,1755376242560,-480.0,0.00020159,2]
[379701807,1755376242569,-151.0,0.00020159,2]
[379701810,1755376242580,-151.1004397,0.00020159,2]
[379701813,1755376242589,-151.03292016,0.00020159,2]
[379701815,1755376242599,-460.63977758,0.00020159,2]
[379701817,1755376242608,-480.0,0.00020159,2]
[379701819,1755376242617,-151.0,0.00020159,2]
[379701821,1755376242629,-830.52,0.00020159,2]
[379701823,1755376242639,-964.02,0.00020159,2]
[379701825,1755376242648,-205.99700286,0.00020159,2]
[379701827,1755376242658,-151.0,0.00020159,2]
[379701829,1755376242667,-480.0,0.00020159,2]
[379701831,1755376242676,-1055.38,0.00020159,2]
[379701833,1755376242685,-460.76201245,0.00020159,2]
[379701835,1755376242695,-480.0,0.00020159,2]
[379701837,1755376242704,-1181.06,0.00020159,2]
[379701839,1755376242713,-363.75675346,0.00020159,2]
[379701841,1755376242722,-480.0,0.00020159,2]
[379701843,1755376242731,-480.0,0.00020159,2]
[379701846,1755376242741,-532.2882024,0.00020159,2]
[379701848,1755376242750,-480.0,0.00020159,2]
[379701850,1755376242759,-480.0,0.00020159,2]
[379701851,1755376242768,-461.32462667,0.00020159,2]
[379701854,1755376242779,-480.0,0.00020159,2]
[379701856,1755376242788,-538.04,0.00020159,2]
[379701857,1755376242797,-480.0,0.00020159,2]
[379701859,1755376242807,-804.26,0.00020159,2]
[379701861,1755376242816,-712.77,0.00020159,2]
[379701863,1755376242825,-460.0,0.00020159,2]
[379701865,1755376242834,-480.0,0.00020159,2]
[379701867,1755376242843,-480.0,0.00020159,2]
[379701869,1755376242853,-153.58880855,0.00020159,2]
[379701871,1755376242863,-480.0,0.00020159,2]
[379701873,1755376242872,-480.0,0.00020159,2]
[379701875,1755376242882,-480.0,0.00020159,2]
[379701877,1755376242892,-500.0,0.00020159,2]
[379701879,1755376242902,-480.0,0.00020159,2]
[379701881,1755376242911,-151.0,0.00020159,2]
[379701883,1755376242920,-4527.68,0.00020159,2]
[379701885,1755376242929,-480.0,0.00020159,2]
[379701887,1755376242939,-500.0,0.00020159,2]
[379701889,1755376242948,-500.0,0.00020159,2]
[379701891,1755376242958,-480.0,0.00020159,2]
[379701893,1755376242967,-502.87,0.00020159,2]
[379701895,1755376242977,-2399.75,0.00020159,2]
[379701897,1755376242986,-480.0,0.00020159,2]
[379701899,1755376242995,-480.0,0.00020159,2]
[379701901,1755376243004,-480.0,0.00020159,2]
[379701903,1755376243014,-480.0,0.00020159,2]
[379701905,1755376243023,-779.59,0.00020159,2]
[379701907,1755376243032,-3220.93,0.00020159,2]
[379701909,1755376243042,-500.0,0.00020159,2]
[379701911,1755376243051,-1091.88,0.00020159,2]
[379701913,1755376243061,-480.0,0.00020159,2]
[379701915,1755376243071,-480.0,0.00020159,2]
[379701917,1755376243080,-480.0,0.00020159,2]
[379701919,1755376243089,-500.0,0.00020159,2]
[379701921,1755376243099,-480.0,0.00020159,2]
[379701923,1755376243109,-500.0,0.00020159,2]
[379701925,1755376243119,-480.0,0.00020159,2]
[379701927,1755376243128,-1180.89,0.00020159,2]
[379701929,1755376243140,-480.0,0.00020159,2]
[379701930,1755376243149,-1243.72,0.00020159,2]
[379701932,1755376243160,-480.0,0.00020159,2]
[379701934,1755376243171,-460.0,0.00020159,2]
[379701936,1755376243181,-480.0,0.00020159,2]
[379701938,1755376243190,-480.0,0.00020159,2]
[379701940,1755376243199,-480.0,0.00020159,2]
[379701942,1755376243209,-807.64,0.00020159,2]
[379701944,1755376243218,-480.0,0.00020159,2]
[379701946,1755376243227,-480.0,0.00020159,2]
[379701948,1755376243238,-480.0,0.00020159,2]
[379701950,1755376243248,-282.92837081,0.00020159,2]
[379701952,1755376243258,-502.19,0.00020159,2]
[379701954,1755376243267,-111.46053041,0.00020159,2]
[379702013,1755376243786,6525.07436782,0.00020061,2]
[379702027,1755376243917,-368.53946959,0.00020159,2]
[379702029,1755376243926,-480.0,0.00020159,2]
[379702031,1755376243936,-480.0,0.00020159,2]
[379702033,1755376243945,-11033.94,0.00020159,2]
[379702035,1755376243955,-480.0,0.00020159,2]
[379702037,1755376243964,-2353.26,0.00020159,2]
[379702039,1755376243973,-460.0,0.00020159,2]
[379702041,1755376243983,-480.0,0.00020159,2]
[379702043,1755376243992,-480.0,0.00020159,2]
[379702045,1755376244001,-480.0,0.00020159,2]
[379702047,1755376244010,-865.88,0.00020159,2]
[379702049,1755376244020,-460.0,0.00020159,2]
[379702051,1755376244029,-480.0,0.00020159,2]
[379702053,1755376244038,-480.0,0.00020159,2]
[379702055,1755376244047,-480.0,0.00020159,2]
[379702057,1755376244056,-480.0,0.00020159,2]
[379702059,1755376244065,-1512.18,0.00020159,2]
[379702061,1755376244075,-460.0,0.00020159,2]
[379702063,1755376244084,-480.0,0.00020159,2]
[379702065,1755376244093,-583.68,0.00020159,2]
[379702067,1755376244103,-500.0,0.00020159,2]
[379702069,1755376244111,-500.0,0.00020159,2]
[379702071,1755376244121,-480.0,0.00020159,2]
[379702073,1755376244130,-480.0,0.00020159,2]
[379702075,1755376244139,-480.0,0.00020159,2]
[379702077,1755376244148,-804.59,0.00020159,2]
[379702079,1755376244157,-480.0,0.00020159,2]
[379702081,1755376244169,-480.0,0.00020159,2]
[379702083,1755376244178,-1120.07,0.00020159,2]
[379702085,1755376244188,-597.81,0.00020159,2]
[379702087,1755376244197,-480.0,0.00020159,2]
[379702089,1755376244206,-151.0,0.00020159,2]
[379702090,1755376244214,-480.0,0.00020159,2]
[379702091,1755376244223,-152.81787835,0.00020159,2]
[379702092,1755376244232,-3830.68,0.00020159,2]
[379702093,1755376244243,-1104.0,0.00020159,2]
[379702094,1755376244252,-480.0,0.00020159,2]
[379702095,1755376244261,-539.36,0.00020159,2]
[379702096,1755376244270,-642.32,0.00020159,2]
[379702097,1755376244280,-151.16324834,0.00020159,2]
[379702098,1755376244289,-797.04,0.00020159,2]
[379702099,1755376244298,-480.0,0.00020159,2]
[379702100,1755376244307,-151.0,0.00020159,2]
[379702101,1755376244316,-151.0,0.00020159,2]
[379702102,1755376244329,-408.58343501,0.00020159,2]
[379702104,1755376244341,-480.0,0.00020159,2]
[379702106,1755376244361,-480.0,0.00020159,2]
[379702109,1755376244388,-151.0,0.00020159,2]
[379702110,1755376244402,-500.0,0.00020159,2]
[379702112,1755376244412,-460.0,0.00020159,2]
[379702114,1755376244424,-480.0,0.00020159,2]
[379702116,1755376244433,-480.0,0.00020159,2]
[379702118,1755376244444,-151.0,0.00020159,2]
[379702120,1755376244453,-151.0,0.00020159,2]
[379702122,1755376244462,-151.0,0.00020159,2]
[379702124,1755376244471,-480.0,0.00020159,2]
[379702126,1755376244480,-151.0,0.00020159,2]
[379702128,1755376244489,-480.0,0.00020159,2]
[379702130,1755376244499,-480.0,0.00020159,2]
[379702132,1755376244508,-480.0,0.00020159,2]
[379702134,1755376244517,-480.0,0.00020159,2]
[379702136,1755376244526,-480.0,0.00020159,2]
[379702138,1755376244535,-460.0,0.00020159,2]
[379702140,1755376244545,-480.0,0.00020159,2]
[379702142,1755376244554,-480.0,0.00020159,2]
[379702144,1755376244563,-480.0,0.00020159,2]
[379702146,1755376244572,-480.0,0.0002016,2]
[379702148,1755376244582,-500.0,0.0002016,2]
[379702150,1755376244591,-500.0,0.0002016,2]
[379702152,1755376244600,-480.0,0.0002016,2]
[379702154,1755376244609,-500.0,0.0002016,2]
[379702156,1755376244619,-500.0,0.0002016,2]
[379702158,1755376244628,-500.0,0.0002016,2]
[379702160,1755376244637,-500.0,0.0002016,2]
[379702162,1755376244647,-500.0,0.0002016,2]
[379702164,1755376244656,-500.0,0.0002016,2]
[379702166,1755376244665,-500.0,0.0002016,2]
[379702168,1755376244674,-480.0,0.0002016,2]
[379702170,1755376244683,-500.0,0.0002016,2]
[379702172,1755376244692,-500.0,0.0002016,2]
[379702174,1755376244702,-500.0,0.0002016,2]
[379702176,1755376244711,-500.0,0.0002016,2]
[379702178,1755376244720,-500.0,0.0002016,2]
[379702180,1755376244729,-475.44,0.0002016,2]
[379702182,1755376244738,-480.0,0.0002016,2]
[379702184,1755376244747,-500.0,0.0002016,2]
[379702186,1755376244756,-531.01,0.0002016,2]
[379702188,1755376244765,-343.46208725,0.00020161,2]
[379702190,1755376244774,-466.14484285,0.00020161,2]
[379702192,1755376244784,-460.0,0.00020161,2]
[379702194,1755376244793,-480.0,0.00020161,2]
[379702196,1755376244802,-480.0,0.00020161,2]
[379702198,1755376244811,-480.0,0.00020161,2]
[379702200,1755376244820,-336.68901843,0.00020161,2]
[379702202,1755376244829,-480.0,0.00020161,2]
[379702204,1755376244838,-471.81070131,0.00020161,2]
[379702206,1755376244848,-531.45179199,0.00020161,2]
[379702208,1755376244857,-461.3835453,0.00020161,2]
[379702210,1755376244866,-480.0,0.00020161,2]
[379702212,1755376244875,-480.0,0.00020161,2]
[379702214,1755376244885,-460.0,0.00020161,2]
[379702216,1755376244894,-480.0,0.00020161,2]
[379702218,1755376244903,-480.0,0.00020161,2]
[379702220,1755376244912,-460.43149146,0.00020161,2]
[379702222,1755376244921,-480.0,0.00020161,2]
[379702224,1755376244931,-480.0,0.00020161,2]
[379702226,1755376244940,-480.0,0.00020161,2]
[379702228,1755376244949,-460.0,0.00020161,2]
[379702230,1755376244958,-480.0,0.00020161,2]
[379702232,1755376244967,-443.17241273,0.00020161,2]
[379702234,1755376244976,-480.0,0.00020161,2]
[379702236,1755376244985,-480.0,0.00020161,2]
[379702238,1755376244994,-460.78900812,0.00020161,2]
[379702240,1755376245004,-480.0,0.00020161,2]
[379702242,1755376245014,-480.0,0.00020161,2]
[379702244,1755376245023,-480.0,0.00020161,2]
[379702246,1755376245032,-880.37,0.00020161,2]
[379702248,1755376245041,-480.0,0.00020161,2]
[379702250,1755376245052,-480.0,0.00020161,2]
[379702252,1755376245062,-480.0,0.00020161,2]
[379702254,1755376245071,-480.0,0.00020161,2]
[379702256,1755376245080,-480.0,0.00020161,2]
[379702258,1755376245090,-480.0,0.00020161,2]
[379702260,1755376245099,-603.35564049,0.00020161,2]
[379702262,1755376245109,-480.0,0.00020161,2]
[379702264,1755376245118,-480.0,0.00020161,2]
[379702266,1755376245127,-509.07,0.00020161,2]
[379702268,1755376245136,-500.0,0.00020161,2]
[379702270,1755376245145,-500.0,0.00020161,2]
[379702272,1755376245154,-480.0,0.00020161,2]
[379702274,1755376245167,-480.0,0.00020161,2]
[379702276,1755376245176,-480.0,0.00020161,2]
[379702278,1755376245186,-480.0,0.00020161,2]
[379702280,1755376245195,-480.0,0.00020161,2]
[379702282,1755376245205,-480.0,0.00020161,2]
[379702284,1755376245215,-480.0,0.00020161,2]
[379702286,1755376245223,-384.17756026,0.00020161,2]
[379702288,1755376245233,-480.0,0.00020161,2]
[379702290,1755376245242,-460.0,0.00020161,2]
[379702292,1755376245251,-558.94,0.00020161,2]
[379702294,1755376245260,-480.0,0.00020161,2]
[379702296,1755376245269,-480.0,0.00020161,2]
[379702298,1755376245278,-480.0,0.00020161,2]
[379702300,1755376245287,-480.0,0.00020161,2]
[379702302,1755376245297,-480.0,0.00020161,2]
[379702304,1755376245306,-480.0,0.00020161,2]
[379702306,1755376245315,-480.0,0.00020161,2]
[379702308,1755376245325,-480.0,0.00020161,2]
[379702310,1755376245334,-480.0,0.00020161,2]
[379702312,1755376245344,-461.20105334,0.00020161,2]
[379702314,1755376245353,-480.0,0.00020161,2]
[379702316,1755376245362,-480.0,0.00020161,2]
[379702318,1755376245371,-480.0,0.00020161,2]
[379702320,1755376245380,-480.0,0.00020161,2]
[379702322,1755376245390,-480.0,0.00020161,2]
[379702324,1755376245399,-469.82144663,0.00020161,2]